[Event "European Womens-ch 2025"]
[Site "Rhodes"]
[Date "2025.04.11"]
[Round "11.57"]
[White "Hariharan, Shambavi"]
[Black "Silva, Ana Ines Teixeira Da"]
[Result "1/2-1/2"]
[Annotator "NA"]
[ECO "D02"]
[WhiteElo "2024"]
[BlackElo "1893"]
[PlyCount "111"]
[EventDate "2025.03.29"]
[EventType "swiss"]
[EventCountry "GRE"]
[SourceTitle "playchess.com"]
[Source "ChessBase"]
[SourceQuality "1"]
[TimeControl "40/5400+30:1800+30"]

1. Nf3 {[%emt 0:00:23]} d5 {[%emt 0:00:06]} 2. g3 {[%emt 0:00:05]} Nf6 {[%emt 0:02:06]} 3. Bg2 {[%emt 0:00:06]} e6 {[%emt 0:01:38]} 4. O-O {[%emt 0:00:09]} Bd6 {[%emt 0:01:38]} 5. c4 {[%emt 0:00:15]} O-O {[%emt 0:01:59]} 6. d4 {[%emt 0:00:07]} h6 {[%emt 0:00:37]} 7. Qc2 {[%emt 0:00:50]} b6 {[%emt 0:00:39]} 8. cxd5 {[%emt 0:00:23]} exd5 {[%emt 0:00:29]} 9. Nc3 {[%emt 0:00:07]} Bb7 {[%emt 0:02:11]} 10. Rd1 {[%emt 0:00:09]} Nc6 {[%emt 0:02:37]} 11. a3 {[%emt 0:00:10]} Re8 {[%emt 0:03:41]} 12. Bf4 {[%emt 0:01:07]} Bxf4 {[%emt 0:07:48]} 13. gxf4 {[%emt 0:00:06]} Ne4 {[%emt 0:29:43]} 14. Ne5 {[%emt 0:09:41]} Nxc3 {[%emt 0:04:12]} 15. Qxc3 {[%emt 0:07:05]} Ne7 {[%emt 0:07:08]} 16. Rac1 {[%emt 0:01:17]} c6 {[%emt 0:02:06]} 17. e3 {[%emt 0:03:31]} f6 {[%emt 0:06:11]} 18. Nf3 {[%emt 0:03:51]} Nf5 {[%emt 0:04:21]} 19. Qd3 {[%emt 0:02:44]} Nd6 {[%emt 0:02:38]} 20. Qg6 {[%emt 0:04:54]} Rc8 {[%emt 0:08:43]} 21. Nh4 {[%emt 0:05:20]} Qd7 {[%emt 0:03:12]} 22. Qg3 {[%emt 0:03:03]} Qf7 {[%emt 0:04:19]} 23. Bh3 {[%emt 0:01:40]} f5 {[%emt 0:02:41]} 24. Kh1 {[%emt 0:01:13]} c5 {[%emt 0:00:45]} 25. Rg1 {[%emt 0:16:19]} cxd4 {[%emt 0:00:30]} 26. Rxc8 {[%emt 0:00:12]} Bxc8 {[%emt 0:00:09]} 27. exd4 {[%emt 0:00:27]} Ne4 {[%emt 0:00:25]} 28. Qg2 {[%emt 0:00:37]} Re7 {[%emt 0:00:51]} 29. Ng6 {[%emt 0:01:02]} Rc7 {[%emt 0:00:17]} 30. Ne5 {[%emt 0:00:38]} Qh5 {[%emt 0:00:45]} 31. f3 {[%emt 0:02:31]} Nf6 {[%emt 0:00:13]} 32. Qg3 {[%emt 0:00:47]} Ba6 {[%emt 0:00:48]} 33. Ng6 {[%emt 0:07:20]} Be2 {[%emt 0:00:26]} 34. Nh4 {[%emt 0:00:24]} Bd3 {[%emt 0:00:42]} 35. b4 {[%emt 0:02:16]} Kh7 {[%emt 0:00:32]} 36. Rd1 {[%emt 0:00:47]} Bc2 {[%emt 0:00:06]} 37. Rc1 {[%emt 0:01:34]} g6 {[%emt 0:00:21]} 38. Qf2 {[%emt 0:04:42]} Rc4 {[%emt 0:00:20]} 39. Rg1 {[%emt 0:01:15]} g5 {[%emt 0:00:58]} 40. fxg5 {[%emt 0:00:00]} hxg5 {[%emt 0:00:00]} 41. Bxf5+ {[%emt 0:05:14]} Bxf5 {[%emt 0:02:59]} 42. Nxf5 {[%emt 0:00:15]} Rc3 {[%emt 0:07:17]} 43. Ne3 {[%emt 0:02:35]} Rxa3 {[%emt 0:03:21]} 44. Qc2+ {[%emt 0:02:27]} Qg6 {[%emt 0:01:54]} 45. Qc7+ {[%emt 0:43:22]} Qg7 {[%emt 0:10:25]} 46. Qxg7+ {[%emt 0:00:00]} Kxg7 {[%emt 0:00:06]} 47. Rxg5+ {[%emt 0:00:00]} Kh6 {[%emt 0:01:09]} 48. Re5 {[%emt 0:00:00]} Rb3 {[%emt 0:00:39]} 49. Nxd5 {[%emt 0:00:00]} Nxd5 {[%emt 0:00:06]} 50. Rxd5 {[%emt 0:00:00]} Rxb4 {[%emt 0:00:06]} 51. Rd8 {[%emt 0:00:00]} a5 {[%emt 0:00:42]} 52. d5 {[%emt 0:00:00]} Kg7 {[%emt 0:05:47]} 53. Kg2 {[%emt 0:00:00]} a4 {[%emt 0:00:38]} 54. Ra8 {[%emt 0:04:30]} b5 {[%emt 0:03:30]} 55. d6 {[%emt 0:00:30]} Kf6 {[%emt 0:00:30]} 56. d7 1/2-1/2

[Event "European Womens-ch 2025"]
[Site "Rhodes"]
[Date "2025.04.11"]
[Round "11.58"]
[White "Chasouraki, Chrysi"]
[Black "Valkova, Angelika"]
[Result "1/2-1/2"]
[Annotator "NA"]
[ECO "C15"]
[WhiteElo "1843"]
[BlackElo "2001"]
[PlyCount "114"]
[EventDate "2025.03.29"]
[EventType "swiss"]
[EventCountry "GRE"]
[SourceTitle "playchess.com"]
[Source "ChessBase"]
[SourceQuality "1"]
[TimeControl "40/5400+30:1800+30"]

1. e4 {[%emt 0:02:09]} e6 {[%emt 0:00:05]} 2. d4 {[%emt 0:00:05]} d5 {[%emt 0:00:04]} 3. Nc3 {[%emt 0:00:05]} Bb4 {[%emt 0:00:05]} 4. Nge2 {[%emt 0:00:08]} dxe4 {[%emt 0:01:54]} 5. a3 {[%emt 0:00:10]} Bxc3+ {[%emt 0:06:20]} 6. Nxc3 {[%emt 0:00:58]} f5 {[%emt 0:00:27]} 7. Qh5+ {[%emt 0:03:57]} g6 {[%emt 0:04:50]} 8. Qh3 {[%emt 0:01:01]} Nc6 {[%emt 0:11:19]} 9. Bf4 {[%emt 0:06:37]} Nf6 {[%emt 0:08:28]} 10. Bb5 {[%emt 0:22:25]} Qxd4 {[%emt 0:16:01]} 11. Rd1 {[%emt 0:02:24]} Qc5 {[%emt 0:02:10]} 12. Bxc7 {[%emt 0:07:14]} Nd5 {[%emt 0:06:00]} 13. Be5 {[%emt 0:15:06]} O-O {[%emt 0:00:27]} 14. Bxc6 {[%emt 0:08:26]} bxc6 {[%emt 0:00:39]} 15. Qh6 {[%emt 0:01:31]} Rf7 {[%emt 0:01:37]} 16. O-O {[%emt 0:01:09]} Qf8 {[%emt 0:04:22]} 17. Qd2 {[%emt 0:03:17]} h6 {[%emt 0:02:39]} 18. Na4 {[%emt 0:04:58]} Ba6 {[%emt 0:05:57]} 19. Rfe1 {[%emt 0:00:11]} Bb5 {[%emt 0:00:29]} 20. Qd4 {[%emt 0:01:43]} Bxa4 {[%emt 0:05:18]} 21. Qxa4 {[%emt 0:00:03]} Qc5 {[%emt 0:04:13]} 22. b4 {[%emt 0:05:05]} Nc3 {[%emt 0:06:17]} 23. bxc5 {[%emt 0:03:40]} Nxa4 {[%emt 0:00:04]} 24. Rd6 {[%emt 0:03:23]} Nxc5 {[%emt 0:02:06]} 25. Bd4 {[%emt 0:06:28]} Nd7 {[%emt 0:00:06]} 26. Rxc6 {[%emt 0:00:44]} e5 {[%emt 0:01:38]} 27. Bc3 {[%emt 0:00:27]} Kg7 {[%emt 0:02:13]} 28. Rd1 {[%emt 0:00:24]} Re8 {[%emt 0:01:53]} 29. g3 {[%emt 0:00:27]} Nf8 {[%emt 0:01:50]} 30. Rd5 {[%emt 0:00:32]} Rfe7 {[%emt 0:00:49]} 31. Rdd6 {[%emt 0:00:37]} Kf7 {[%emt 0:00:43]} 32. Rf6+ {[%emt 0:00:18]} Kg8 {[%emt 0:00:26]} 33. Bb4 {[%emt 0:00:30]} Rg7 {[%emt 0:01:22]} 34. Bxf8 {[%emt 0:00:37]} Rxf8 {[%emt 0:00:09]} 35. Rxg6 {[%emt 0:00:05]} Rxg6 {[%emt 0:00:30]} 36. Rd6 {[%emt 0:01:36]} Re6 37. Rxe6 {[%emt 0:00:00]} Kh7 {[%emt 0:00:39]} 38. Rc6 {[%emt 0:00:00]} Rf7 {[%emt 0:00:15]} 39. c4 {[%emt 0:00:24]} f4 {[%emt 0:01:50]} 40. Re6 {[%emt 0:01:02]} fxg3 {[%emt 0:03:30]} 41. hxg3 {[%emt 0:00:28]} Rc7 {[%emt 0:00:22]} 42. Rxe5 {[%emt 0:01:15]} Rxc4 {[%emt 0:00:20]} 43. Re7+ {[%emt 0:00:19]} Kg6 {[%emt 0:00:04]} 44. Rxa7 {[%emt 0:00:24]} Rc3 {[%emt 0:01:58]} 45. a4 {[%emt 0:02:27]} e3 {[%emt 0:02:35]} 46. fxe3 {[%emt 0:00:36]} Rxe3 {[%emt 0:00:06]} 47. Kg2 {[%emt 0:02:36]} Ra3 {[%emt 0:00:18]} 48. Kh3 {[%emt 0:02:04]} Rb3 {[%emt 0:00:20]} 49. a5 {[%emt 0:00:48]} Ra3 {[%emt 0:00:39]} 50. a6 {[%emt 0:00:15]} Ra4 {[%emt 0:00:48]} 51. Ra8 {[%emt 0:01:37]} Kh7 {[%emt 0:00:15]} 52. a7 {[%emt 0:01:12]} Kg7 {[%emt 0:00:06]} 53. Kg2 {[%emt 0:00:20]} Ra3 {[%emt 0:00:09]} 54. Kf2 {[%emt 0:00:11]} Kh7 {[%emt 0:00:21]} 55. Ke2 {[%emt 0:02:06]} Kg7 {[%emt 0:00:05]} 56. Kd2 {[%emt 0:00:17]} Kh7 {[%emt 0:00:06]} 57. Kc2 {[%emt 0:00:09]} Kg7 {[%emt 0:00:18]} 1/2-1/2

[Event "European Womens-ch 2025"]
[Site "Rhodes"]
[Date "2025.04.11"]
[Round "11.59"]
[White "Recica, Jona"]
[Black "Alexandri, Dimitra"]
[Result "0-1"]
[Annotator "NA"]
[ECO "C44"]
[WhiteElo "1716"]
[BlackElo "1995"]
[PlyCount "98"]
[EventDate "2025.03.29"]
[EventType "swiss"]
[EventCountry "GRE"]
[SourceTitle "playchess.com"]
[Source "ChessBase"]
[SourceQuality "1"]
[TimeControl "40/5400+30:1800+30"]

1. e4 {[%emt 0:00:02]} e5 {[%emt 0:00:06]} 2. Nf3 {[%emt 0:00:04]} Nc6 {[%emt 1:31:24]} 3. d4 exd4 {[%emt 0:00:00]} 4. Bc4 Bc5 {[%emt 0:01:00]} 5. Ng5 {[%emt 0:00:38]} Nh6 {[%emt 0:00:30]} 6. Nxf7 {[%emt 0:00:18]} Nxf7 {[%emt 0:00:00]} 7. Bxf7+ {[%emt 0:00:30]} Kxf7 {[%emt 0:00:00]} 8. Qh5+ {[%emt 0:00:00]} g6 {[%emt 0:00:00]} 9. Qxc5 {[%emt 0:00:48]} d5 {[%emt 0:00:00]} 10. Qxd5+ {[%emt 0:01:15]} Qxd5 {[%emt 0:00:00]} 11. exd5 {[%emt 0:00:11]} Nb4 {[%emt 0:00:00]} 12. Na3 Re8+ {[%emt 0:00:00]} 13. Kd1 Nxd5 {[%emt 0:00:00]} 14. h3 a6 {[%emt 0:00:00]} 15. Bd2 b5 {[%emt 0:00:00]} 16. Re1 Bb7 {[%emt 0:00:00]} 17. f3 c5 {[%emt 0:00:00]} 18. c3 dxc3 {[%emt 0:00:00]} 19. bxc3 {[%emt 0:25:41]} Nb6 {[%emt 0:00:00]} 20. Kc2 {[%emt 0:07:32]} Bd5 {[%emt 0:00:00]} 21. Be3 {[%emt 0:00:00]} Rac8 {[%emt 0:00:00]} 22. Kb2 {[%emt 0:00:00]} Re6 {[%emt 0:00:00]} 23. Rad1 Na4+ {[%emt 0:09:00]} 24. Ka1 {[%emt 0:20:06]} Nxc3 {[%emt 0:00:00]} 25. Rd3 {[%emt 0:00:19]} b4 {[%emt 0:00:00]} 26. Nc2 {[%emt 0:46:06]} Rce8 {[%emt 0:00:00]} 27. Bd2 {[%emt 0:00:00]} Rxe1+ {[%emt 0:00:00]} 28. Bxe1 {[%emt 0:00:00]} Bc4 {[%emt 0:00:00]} 29. Rd7+ {[%emt 0:00:00]} Kg8 {[%emt 0:00:00]} 30. a3 {[%emt 0:00:00]} Re2 {[%emt 0:00:11]} 31. Rd2 {[%emt 0:00:00]} b3 {[%emt 0:00:30]} 32. Rxe2 Nxe2 33. Ne3 {[%emt 0:00:00]} Be6 {[%emt 0:03:16]} 34. Kb2 {[%emt 0:00:00]} Nf4 {[%emt 0:01:33]} 35. Bc3 {[%emt 0:00:00]} Nd3+ {[%emt 0:00:30]} 36. Kb1 {[%emt 0:00:00]} Kf7 {[%emt 0:00:00]} 37. Ng4 Nf4 {[%emt 0:00:19]} 38. Ne3 Ke7 {[%emt 0:01:11]} 39. Kc1 {[%emt 0:00:00]} Ne2+ {[%emt 0:00:30]} 40. Kd2 {[%emt 0:00:00]} Nxc3 {[%emt 0:00:00]} 41. Kxc3 {[%emt 0:00:00]} Kd6 {[%emt 0:00:48]} 42. Nf1 {[%emt 0:00:00]} c4 {[%emt 0:10:12]} 43. Nd2 {[%emt 0:00:00]} Kc5 {[%emt 0:03:05]} 44. Ne4+ Kb5 {[%emt 0:00:30]} 45. Kb2 {[%emt 0:39:30]} Bf5 {[%emt 0:00:59]} 46. Nd6+ {[%emt 0:00:00]} Kc5 {[%emt 0:00:15]} 47. Nxf5 {[%emt 0:00:00]} gxf5 {[%emt 0:00:06]} 48. Kc3 {[%emt 0:00:00]} f4 {[%emt 0:00:30]} 49. h4 {[%emt 0:00:00]} h5 {[%emt 0:00:30]} 0-1

[Event "European Womens-ch 2025"]
[Site "Rhodes"]
[Date "2025.04.11"]
[Round "11.60"]
[White "Zvereva, Marija"]
[Black "Lamprianou, Marianna"]
[Result "1-0"]
[Annotator "NA"]
[ECO "A03"]
[WhiteElo "2033"]
[BlackElo "1498"]
[PlyCount "79"]
[EventDate "2025.03.29"]
[EventType "swiss"]
[EventCountry "GRE"]
[SourceTitle "playchess.com"]
[Source "ChessBase"]
[SourceQuality "1"]
[TimeControl "40/5400+30:1800+30"]

1. f4 {[%emt 0:00:31]} d5 {[%emt 0:01:01]} 2. Nf3 {[%emt 0:00:08]} Nc6 {[%emt 0:00:30]} 3. g3 {[%emt 0:00:16]} Nf6 {[%emt 0:00:46]} 4. Bg2 {[%emt 0:00:52]} Bf5 {[%emt 0:01:39]} 5. O-O {[%emt 0:00:21]} e6 {[%emt 0:00:32]} 6. d3 {[%emt 0:00:56]} Bc5+ {[%emt 0:02:32]} 7. e3 {[%emt 0:00:16]} O-O {[%emt 0:02:20]} 8. h3 {[%emt 0:00:53]} h5 {[%emt 0:00:49]} 9. Qe2 {[%emt 0:01:25]} Re8 {[%emt 0:01:18]} 10. Ne5 {[%emt 0:01:48]} Qd6 {[%emt 0:03:26]} 11. Nc3 {[%emt 0:02:26]} Bxe3+ {[%emt 0:05:53]} 12. Bxe3 {[%emt 0:01:02]} d4 {[%emt 0:00:10]} 13. Bf2 {[%emt 0:00:18]} dxc3 {[%emt 0:00:22]} 14. bxc3 {[%emt 0:00:11]} a6 {[%emt 0:04:27]} 15. Rab1 {[%emt 0:01:33]} Rab8 {[%emt 0:00:48]} 16. Kh2 {[%emt 0:00:25]} Na5 {[%emt 1:11:57]} 17. c4 {[%emt 0:02:35]} Qa3 {[%emt 0:00:00]} 18. g4 {[%emt 0:00:59]} Bg6 {[%emt 0:00:00]} 19. g5 {[%emt 0:03:01]} Nh7 {[%emt 0:01:30]} 20. Bf3 {[%emt 0:14:47]} Bf5 {[%emt 0:00:00]} 21. Bxh5 {[%emt 0:00:53]} g6 {[%emt 0:00:00]} 22. Bf3 {[%emt 0:00:28]} Qe7 {[%emt 0:00:00]} 23. h4 {[%emt 0:01:53]} Red8 {[%emt 0:00:00]} 24. Be1 {[%emt 0:00:41]} b6 {[%emt 0:00:00]} 25. Kg3 {[%emt 0:03:54]} f6 {[%emt 0:00:00]} 26. Ng4 {[%emt 0:00:30]} Bxg4 {[%emt 0:00:00]} 27. Bxg4 {[%emt 0:00:34]} f5 {[%emt 0:00:00]} 28. Bf3 {[%emt 0:00:11]} Nb7 {[%emt 0:00:00]} 29. Bc3 {[%emt 0:00:18]} Nf8 {[%emt 0:00:00]} 30. Bf6 {[%emt 0:03:39]} Qd6 {[%emt 0:00:00]} 31. Bxb7 {[%emt 0:01:32]} Rxb7 {[%emt 0:00:00]} 32. Bxd8 {[%emt 0:00:04]} Qxd8 {[%emt 0:00:00]} 33. h5 {[%emt 0:00:06]} Qe8 {[%emt 0:00:00]} 34. hxg6 {[%emt 0:00:53]} Qxg6 {[%emt 0:00:00]} 35. Rh1 {[%emt 0:00:11]} Nh7 {[%emt 0:00:00]} 36. Rh6 {[%emt 0:00:14]} Qf7 {[%emt 0:00:00]} 37. Rbh1 {[%emt 0:00:25]} Nf8 {[%emt 0:00:00]} 38. Rh8+ {[%emt 0:00:13]} Kg7 {[%emt 0:00:00]} 39. Qe5+ {[%emt 0:00:04]} Kg6 {[%emt 0:00:00]} 40. R1h6# {[%emt 0:00:36]} 1-0

[Event "European Womens-ch 2025"]
[Site "Rhodes"]
[Date "2025.04.11"]
[Round "11.61"]
[White "Mitraka, Chrysoula-Paraskevi"]
[Black "Kiousi, Panagiota"]
[Result "0-1"]
[Annotator "NA"]
[ECO "E32"]
[WhiteElo "1820"]
[BlackElo "1998"]
[PlyCount "142"]
[EventDate "2025.03.29"]
[EventType "swiss"]
[EventCountry "GRE"]
[SourceTitle "playchess.com"]
[Source "ChessBase"]
[SourceQuality "1"]
[TimeControl "40/5400+30:1800+30"]

1. d4 {[%emt 0:01:02]} Nf6 {[%emt 0:00:04]} 2. c4 {[%emt 0:00:11]} e6 {[%emt 0:00:03]} 3. Nc3 {[%emt 0:00:05]} Bb4 {[%emt 0:00:05]} 4. Qc2 {[%emt 0:00:12]} O-O {[%emt 0:00:06]} 5. a3 {[%emt 0:00:26]} Bxc3+ {[%emt 0:00:16]} 6. Qxc3 {[%emt 0:04:25]} b6 {[%emt 0:00:13]} 7. Bg5 {[%emt 0:01:18]} Bb7 {[%emt 0:00:07]} 8. f3 {[%emt 0:02:05]} h6 {[%emt 0:04:06]} 9. Bh4 {[%emt 0:01:49]} d5 {[%emt 0:02:10]} 10. e3 {[%emt 0:03:17]} Nbd7 {[%emt 0:01:52]} 11. cxd5 {[%emt 0:01:55]} exd5 {[%emt 0:00:14]} 12. Bd3 {[%emt 0:00:50]} Re8 {[%emt 0:09:49]} 13. Ne2 {[%emt 0:06:07]} Qe7 {[%emt 0:13:30]} 14. Bf2 {[%emt 0:01:31]} Nf8 {[%emt 0:02:05]} 15. O-O {[%emt 0:04:30]} Rac8 {[%emt 0:05:46]} 16. Qd2 {[%emt 0:05:26]} c5 {[%emt 0:04:12]} 17. Rac1 {[%emt 0:05:27]} Ne6 {[%emt 0:01:34]} 18. Rfe1 {[%emt 0:01:42]} Qf8 {[%emt 0:08:08]} 19. Ng3 {[%emt 0:08:16]} g6 {[%emt 0:03:14]} 20. Bc2 {[%emt 0:08:41]} h5 {[%emt 0:02:40]} 21. h4 {[%emt 0:09:05]} Qh6 {[%emt 0:05:20]} 22. Rcd1 {[%emt 0:04:11]} Re7 {[%emt 0:05:00]} 23. Bb1 {[%emt 0:07:00]} Rd7 {[%emt 0:05:49]} 24. Qe2 {[%emt 0:04:27]} Qg7 {[%emt 0:04:15]} 25. Rc1 {[%emt 0:02:45]} Ne8 {[%emt 0:02:33]} 26. Red1 {[%emt 0:03:45]} Qf6 {[%emt 0:01:17]} 27. Nf1 {[%emt 0:04:18]} N8g7 {[%emt 0:00:11]} 28. Qd2 {[%emt 0:02:34]} Rcd8 {[%emt 0:07:37]} 29. Bc2 {[%emt 0:01:56]} Nf5 {[%emt 0:01:33]} 30. Bxf5 {[%emt 0:01:18]} Qxf5 {[%emt 0:00:03]} 31. Bg3 {[%emt 0:00:15]} Qf6 {[%emt 0:02:07]} 32. Qf2 {[%emt 0:00:56]} Qg7 {[%emt 0:00:48]} 33. Rc2 {[%emt 0:01:33]} f6 {[%emt 0:01:19]} 34. Rcc1 {[%emt 0:00:30]} Qe7 {[%emt 0:00:19]} 35. Qc2 {[%emt 0:01:18]} Kh7 {[%emt 0:00:33]} 36. Qf2 {[%emt 0:00:52]} Ng7 {[%emt 0:00:56]} 37. Qe1 {[%emt 0:01:35]} Re8 {[%emt 0:01:03]} 38. Bf2 {[%emt 0:00:28]} Ba6 {[%emt 0:03:44]} 39. Ng3 {[%emt 0:00:33]} Ne6 {[%emt 0:02:12]} 40. Qd2 {[%emt 0:00:00]} f5 {[%emt 0:00:00]} 41. Ne2 {[%emt 0:09:16]} Bxe2 {[%emt 0:01:48]} 42. Qxe2 {[%emt 0:00:20]} Nxd4 {[%emt 0:00:22]} 43. Qe1 {[%emt 0:04:34]} Nc6 {[%emt 0:00:27]} 44. Qc3 {[%emt 0:07:12]} Ne5 {[%emt 0:01:57]} 45. b3 {[%emt 0:01:29]} c4 {[%emt 0:04:11]} 46. bxc4 {[%emt 0:02:52]} Nxc4 {[%emt 0:00:29]} 47. Rd3 {[%emt 0:01:06]} b5 {[%emt 0:01:19]} 48. Rcd1 {[%emt 0:01:15]} Red8 {[%emt 0:00:26]} 49. Qb3 {[%emt 0:01:03]} a6 {[%emt 0:00:19]} 50. Be1 {[%emt 0:02:28]} Qe6 {[%emt 0:05:42]} 51. Bg3 {[%emt 0:01:18]} Re8 {[%emt 0:03:56]} 52. Bf4 {[%emt 0:00:24]} Qc6 {[%emt 0:01:43]} 53. Bg5 {[%emt 0:03:28]} Qc5 {[%emt 0:01:09]} 54. Bf4 {[%emt 0:01:00]} Re6 {[%emt 0:03:22]} 55. Rb1 {[%emt 0:00:51]} Rde7 {[%emt 0:01:19]} 56. Re1 {[%emt 0:00:34]} d4 {[%emt 0:05:17]} 57. Rxd4 {[%emt 0:00:30]} Nxe3 {[%emt 0:00:10]} 58. Bxe3 {[%emt 0:00:33]} Rxe3 {[%emt 0:00:05]} 59. Rxe3 {[%emt 0:00:29]} Qxd4 {[%emt 0:00:05]} 60. Kf2 {[%emt 0:00:33]} Qd2+ {[%emt 0:00:05]} 61. Kg3 {[%emt 0:00:30]} Qxe3 {[%emt 0:00:17]} 62. Qb4 {[%emt 0:00:25]} Qe1+ {[%emt 0:00:16]} 63. Qxe1 {[%emt 0:00:36]} Rxe1 {[%emt 0:00:05]} 64. f4 {[%emt 0:00:27]} Re3+ {[%emt 0:00:17]} 65. Kh2 {[%emt 0:00:19]} Rxa3 {[%emt 0:00:06]} 66. Kh1 {[%emt 0:00:11]} b4 {[%emt 0:00:06]} 67. Kh2 {[%emt 0:00:03]} b3 {[%emt 0:00:05]} 68. Kh1 {[%emt 0:00:10]} b2 {[%emt 0:00:04]} 69. Kh2 {[%emt 0:00:05]} b1=Q {[%emt 0:00:07]} 70. g4 {[%emt 0:00:21]} Ra2+ {[%emt 0:00:09]} 71. Kg3 {[%emt 0:00:05]} Qd3# {[%emt 0:00:05]} 0-1

[Event "European Womens-ch 2025"]
[Site "Rhodes"]
[Date "2025.04.11"]
[Round "11.62"]
[White "Kosma, Maria"]
[Black "Bania, Eleni"]
[Result "1/2-1/2"]
[Annotator "NA"]
[ECO "C75"]
[WhiteElo "1826"]
[BlackElo "1809"]
[PlyCount "21"]
[EventDate "2025.03.29"]
[EventType "swiss"]
[EventCountry "GRE"]
[SourceTitle "playchess.com"]
[Source "ChessBase"]
[SourceQuality "1"]
[TimeControl "40/5400+30:1800+30"]

1. e4 {[%emt 0:00:06]} e5 {[%emt 0:00:03]} 2. Nf3 {[%emt 0:00:06]} Nc6 {[%emt 0:00:03]} 3. Bb5 {[%emt 0:00:07]} a6 {[%emt 0:00:06]} 4. Ba4 {[%emt 0:00:11]} d6 {[%emt 0:00:06]} 5. d3 {[%emt 0:02:54]} Bd7 {[%emt 0:01:39]} 6. c3 {[%emt 0:01:29]} g6 {[%emt 0:00:35]} 7. Bg5 {[%emt 0:02:48]} Be7 {[%emt 0:05:04]} 8. Bxe7 {[%emt 0:07:24]} Qxe7 {[%emt 0:01:50]} 9. c4 {[%emt 0:01:21]} f5 {[%emt 0:09:46]} 10. Nc3 {[%emt 0:06:13]} Nf6 {[%emt 0:02:22]} 11. Qd2 {[%emt 0:10:12]} 1/2-1/2

[Event "European Womens-ch 2025"]
[Site "Rhodes"]
[Date "2025.04.11"]
[Round "11.63"]
[White "Revelioti, Eleni Nefeli"]
[Black "Harutyunyan, Gabriela"]
[Result "0-1"]
[Annotator "NA"]
[ECO "B33"]
[WhiteElo "1470"]
[BlackElo "1793"]
[PlyCount "64"]
[EventDate "2025.03.29"]
[EventType "swiss"]
[EventCountry "GRE"]
[SourceTitle "playchess.com"]
[Source "ChessBase"]
[SourceQuality "1"]
[TimeControl "40/5400+30:1800+30"]

1. e4 {[%emt 0:00:18]} c5 {[%emt 0:00:08]} 2. Nf3 {[%emt 0:01:05]} Nc6 {[%emt 0:00:06]} 3. d4 {[%emt 0:00:26]} cxd4 {[%emt 0:00:06]} 4. Nxd4 {[%emt 0:00:11]} e5 {[%emt 0:00:11]} 5. Nxc6 {[%emt 0:00:32]} bxc6 {[%emt 0:00:08]} 6. Nc3 {[%emt 0:01:42]} Nf6 {[%emt 1:32:51]} 7. Bc4 {[%emt 0:02:04]} Bb4 {[%emt 0:00:00]} 8. Bg5 {[%emt 0:04:45]} h6 {[%emt 0:00:00]} 9. Bxf6 {[%emt 0:03:45]} Qxf6 {[%emt 0:00:00]} 10. Qd3 {[%emt 0:02:21]} Rb8 {[%emt 0:00:00]} 11. a3 {[%emt 0:01:24]} Bc5 {[%emt 0:00:00]} 12. Qd2 {[%emt 0:02:40]} O-O {[%emt 0:00:00]} 13. O-O {[%emt 0:00:30]} d6 {[%emt 0:00:00]} 14. Qd3 {[%emt 0:05:03]} Be6 {[%emt 0:00:00]} 15. Bxe6 {[%emt 0:02:12]} fxe6 {[%emt 0:00:00]} 16. b4 {[%emt 0:02:25]} Bxf2+ {[%emt 0:00:00]} 17. Kh1 {[%emt 0:00:39]} Qe7 {[%emt 0:00:00]} 18. Rad1 {[%emt 0:05:59]} Bb6 {[%emt 0:00:00]} 19. h3 {[%emt 0:05:48]} Rxf1+ {[%emt 0:00:00]} 20. Rxf1 {[%emt 0:00:22]} Rf8 {[%emt 0:00:00]} 21. Rd1 {[%emt 0:02:28]} d5 {[%emt 0:00:00]} 22. Na4 {[%emt 0:02:23]} Bf2 {[%emt 0:00:00]} 23. Rf1 {[%emt 0:01:04]} Qh4 {[%emt 0:00:00]} 24. exd5 {[%emt 0:07:00]} exd5 {[%emt 0:00:00]} 25. Qg6 {[%emt 0:06:05]} Qc4 {[%emt 0:00:00]} 26. Qd3 {[%emt 0:07:04]} Qxd3 {[%emt 0:00:00]} 27. cxd3 {[%emt 0:00:13]} e4 {[%emt 0:00:00]} 28. dxe4 {[%emt 0:02:53]} dxe4 {[%emt 0:00:00]} 29. Nc3 {[%emt 0:00:37]} e3 {[%emt 0:00:00]} 30. Ne2 {[%emt 0:00:23]} Rd8 {[%emt 0:00:00]} 31. Nc3 {[%emt 0:31:39]} Rd3 {[%emt 0:00:00]} 32. Ne2 {[%emt 0:00:00]} Rd2 {[%emt 0:00:00]} 0-1